Cogmind - Beta 17 @@@ ROGUE MODE // 2026.08.21 @ 15:53:04 Player: Tuja Result: Destroyed by G-34 Mercenary with Small Laser Performance ------------- Evolutions (0) 0 Regions Visited (1) 200 Robots Destroyed (16) 80 Value Destroyed (357) 357 Prototype IDs (0) 0 Alien Tech Used (0) 0 Bonus (0) 0 TOTAL SCORE: 637 Bonus ------- None Cogmind --------- Core Integrity 0/250 Matter 275/300 Energy 85/100 System Corruption 0% Temperature Warm (188) Movement Walking (260) Ox2 Location -10/Materials Parts ------- > --- POWER (1) -------- (None) > --- PROPULSION (2) --- Aluminum Leg Aluminum Leg > --- UTILITY (2) ------ High-capacity Storage Unit > --- WEAPON (2) ------- Medium Laser Hammer > --- INVENTORY (20) --- Light Ion Engine Aluminum Leg Aluminum Leg Aluminum Leg Aluminum Leg Wheel Improved Heat Sink Medium Battery (150) Sensor Array Signal Interpreter Tractor Beam Datajack Mining Laser Peak State ------------ > --- POWER ------------ Ion Engine > --- PROPULSION ------- Light Treads Light Treads > --- UTILITY ---------- Small Storage Unit Improved Terrain Scanner > --- WEAPON ----------- Medium Laser Light Assault Rifle > --- INVENTORY -------- Light Ion Engine Aluminum Leg Aluminum Leg Wheel Improved Heat Sink Tractor Beam Medium Laser Datajack [Rating: 10] Favorites ----------- Power Ion Engine Engine Ion Engine Propulsion Light Treads Treads Light Treads Leg Aluminum Leg Wheel Wheel Utility Improved Terrain Scanner Device Improved Terrain Scanner Storage High-capacity Storage Unit Weapon Light Assault Rifle Energy Gun Medium Laser Ballistic Gun Light Assault Rifle Impact Weapon Hammer Build | -11 -10 ------- Run | Yrd Mat Slots Evolved . | . . Power . | . . Propulsion . | . . Utility . | . . Weapon . | . . Parts Attached 15 | 7 8 Power 2 | 1 1 Engine 2 | 1 1 Core . | . . Reactor . | . . Propulsion 6 | 2 4 Treads 2 | 2 . Leg 3 | . 3 Wheel 1 | . 1 Hover . | . . Flight . | . . Utility 3 | 2 1 Device 1 | 1 . Storage 2 | 1 1 Processor . | . . Hackware . | . . Protection . | . . Artifact . | . . Weapon 4 | 2 2 Energy Gun 2 | 1 1 Energy Cannon . | . . Ballistic Gun 1 | 1 . Ballistic Cannon . | . . Launcher . | . . Special Weapon . | . . Impact Weapon 1 | . 1 Slashing Weapon . | . . Piercing Weapon . | . . Special Melee Weapon . | . . Unidentified Prototypes . | . . Parts Lost 7 | . 7 Power 2 | . 2 Propulsion 2 | . 2 Utility 1 | . 1 Weapon 2 | . 2 Highest Loss Streak 5 | . 5 To Critical Strikes . | . . Average Backups 9 | 4 10 Power . | . 1 Propulsion 3 | 3 3 Utility 2 | . 3 Weapon 1 | . 1 Tool/Special . | . . Unused Backups 12 | . 12 Power 1 | . 1 Propulsion 4 | . 4 Utility 5 | . 5 Weapon 1 | . 1 Tool/Special 1 | . 1 Average Slot Usage (%) 97 | . 97 Engine 12 | . 12 Treads 25 | . 25 Wheel 1 | . 1 Device 13 | . 13 Storage 14 | . 14 Energy Gun 13 | . 13 Ballistic Gun 13 | . 13 Peak Build Rating 10 | 9 10 Average Rating 9 | 5 9 On Entrance 4 | . 9 Avg Prop Armor Cover (%) 14 | . 14 Naked Turns . | . . Heaviest Build 49 | 14 49 Greatest Support 40 | 40 40 Greatest Overweight (x) 4 | . 4 Average Overweight (x) . | . . Largest Inventory Capacity 20 | 8 20 Average Capacity 14 | 7 15 Most Carried 16 | 7 16 Average Carried 10 | 4 10 Final Capacity 20 | 8 20 Final Carried 13 | 7 13 Class Distribution -------------------- 100% | Mutant Dominant Class ---------------- Mutant | -10/Materials Resources | -11 -10 ----------- Run | Yrd Mat Matter Collected 398 | 275 123 Remotely . | . . Salvage Created 628 | 108 520 Parts 32 | 5 27 Haulers Intercepted 1 | . 1 Recyclers Shooed 2 | 1 1 Parts Field Recycled . | . . Retrieved Matter . | . . Parts Self-Destructed . | . . Prevented . | . . Parts Restored . | . . Kills | -11 -10 ------- Run | Yrd Mat Combat Hostiles Destroyed 10 | . 10 Guns 9 | . 9 Classes Destroyed 6 | 2 4 Tunneler 1 | 1 . Hauler 1 | . 1 Recycler 2 | 1 1 Watcher 2 | . 2 Swarmer 3 | . 3 Grunt 7 | . 7 Best Kill Streak 4 | 2 4 Combat Bots Only 3 | . 3 Max Kills in Single Turn 2 | 1 2 Gunslinging . | . . Exploded . | . . Melee . | . . Uniques/NPCs Destroyed . | . . Combat | -11 -10 -------- Run | Yrd Mat Hostile Shots Fired 108 | . 108 Missed 25 | . 25 Hits 83 | . 83 Projectile 83 | . 83 Critical Strikes 2 | . 2 Damage Taken 990 | . 990 Core 261 | . 261 Absorbed by Shields . | . . Core Remaining (%) 100 | 100 . Volleys Fired 74 | 5 69 Largest 2 | 2 2 Hottest 70 | 70 70 Shots Fired 139 | 10 129 Gun 139 | 10 129 Cannon . | . . Launcher . | . . Special . | . . Kinetic 65 | 5 60 Thermal 74 | 5 69 Explosive . | . . Electromagnetic . | . . Robot Hit Streak 14 | 7 14 Robot Miss Streak 4 | 2 4 Penetration Max . | . . Secondary Targets 1 | . 1 Max Gunslinging Chain 1 | . 1 Shots Hit Robots 83 | 7 76 Core Hits 32 | 3 29 Critical Kills . | . . Critical Parts Destroyed . | . . Critical Strikes 4 | . 4 Burn 4 | . 4 Melee Attacks 4 | . 4 Impact 4 | . 4 Slashing . | . . Piercing . | . . Sneak Attacks . | . . Combat Hostiles . | . . Follow-up Attacks . | . . Damage Inflicted 898 | 75 823 Guns 898 | 75 823 Cannons . | . . Explosions . | . . Melee . | . . Ramming . | . . Kinetic 325 | 27 298 Thermal 573 | 48 525 Explosive . | . . Electromagnetic . | . . Impact . | . . Slashing . | . . Piercing . | . . Highest Corruption . | . . Average Corruption . | . . Corruption Purged . | . . Corruption Blocked . | . . Overload Shots . | . . Overflow Damage . | . . Projectiles . | . . Explosions . | . . Melee . | . . Knockbacks . | . . Impact . | . . Kinetic . | . . Secondary . | . . Self-Inflicted Damage . | . . Shots . | . . Rammed . | . . Targets Rammed . | . . Kicked . | . . Crushed . | . . Highest Temperature 365 | 70 365 Average Temperature 105 | 32 110 Received Heat Transfer 525 | . 525 Effects 1 | . 1 Interference 1 | . 1 Siege Activations . | . . Martial Activations . | . . Shielding Activations . | . . Robots Disrupted . | . . Combat Hostiles . | . . Robots Corrupted . | . . Combat Hostiles . | . . Parts Fried . | . . Impact Corruptions . | . . Robots Melted 1 | . 1 Combat Hostiles 1 | . 1 Parts Melted 3 | 1 2 Heat Transferred 1998 | 148 1850 Parts Sabotaged . | . . Parts Stolen . | . . Parts Stripped . | . . Power Chain Reactions . | . . Alert | -11 -10 ------- Run | Yrd Mat Maximum Alert Level . | . . Low Security (%) 100 | 100 100 Level 1 . | . . Level 2 . | . . Level 3 . | . . Level 4 . | . . Level 5 . | . . High Security . | . . Max Security . | . . Peak Influence 80 | 10 80 Initial . | . . Average 13 | . 14 Influence Increases 324 | 10 314 Destroy 0b10 Robot/C 200 | . 200 Destroy 0b10 Robot/NC 30 | 10 20 Destroy Leader 56 | . 56 Successful Hack 21 | . 21 Disable Machine 15 | . 15 Destroy Structure 2 | . 2 Influence Decreases 300 | 10 290 Time Decay 236 | 10 226 Lost Part 64 | . 64 Squads Dispatched 2 | . 2 Investigation 2 | . 2 Extermination . | . . Reinforcement . | . . Assault . | . . Garrison . | . . Intercept . | . . Searches Triggered . | . . Construction Impeded . | . . Haulers Reinforced . | . . Active Scanning Responses . | . . Cargo Convoy Interrupts . | . . Stealth | -11 -10 --------- Run | Yrd Mat Distress Signals 1 | . 1 Communications Jammed . | . . Distress Signals . | . . Times Spotted 20 | . 20 Peak Tracking Total 4 | . 4 Tactical Retreats . | . . Traps | -11 -10 ------- Run | Yrd Mat Traps Triggered 2 | . 2 Indirectly . | . . Trap Hack Attempts . | . . Triggered . | . . Disarmed . | . . Reprogrammed . | . . Reused . | . . Traps Extracted . | . . Installed . | . . Triggered . | . . Machines | -11 -10 ---------- Run | Yrd Mat Machines Disabled 1 | . 1 Max in Single Turn 1 | . 1 Machines Repaired . | . . Machines Dismantled . | . . Machines Sabotaged . | . . Overloaded Fab Kills . | . . Hacking | -11 -10 --------- Run | Yrd Mat Machines Accessed 6 | . 6 Terminals 6 | . 6 Fabricators . | . . Repair Stations . | . . Recycling Units . | . . Scanalyzers . | . . Garrison Access . | . . Total Hacks 17 | . 17 Successful 9 | . 9 Failed 8 | . 8 Catastrophic 1 | . 1 Database Lockouts . | . . Manual 15 | . 15 Terminals 17 | . 17 Fabricators . | . . Repair Stations . | . . Recycling Units . | . . Scanalyzers . | . . Garrison Access . | . . Terminal Hacks 7 | . 7 Locate Traps 1 | . 1 Zone Layout 6 | . 6 Fabricator Hacks . | . . Repair Station Hacks . | . . Recycling Unit Hacks . | . . Scanalyzer . | . . Garrison Access Hacks . | . . Unauthorized Hacks 2 | . 2 Terminals 2 | . 2 Botnet 2 | . 2 Fabricators . | . . Repair Stations . | . . Recycling Units . | . . Scanalyzers . | . . Garrison Access . | . . Data Cores Recovered . | . . Used . | . . Hacking Detections 6 | . 6 Full Trace Events . | . . Feedback Events . | . . Feedback Blocked . | . . Robot Schematics Acquired . | . . Robots Built . | . . Authchips . | . . Time . | . . Total Robot Build Rating . | . . Part Schematics Acquired . | . . Parts Built . | . . Authchips . | . . Time . | . . Total Part Build Rating . | . . Part Studies Acquired . | . . Parts Repaired . | . . Time . | . . Parts Recycled . | . . Recycled Matter . | . . Retrieved Matter . | . . Retrieved Components . | . . Parts Scanalyzed . | . . Part Schematics Acquired . | . . Parts Damaged . | . . Bothacking | -11 -10 ------------ Run | Yrd Mat Used RIF Installer . | . . Robots Hacked . | . . Non-combat . | . . Combat . | . . Robot Hacks Applied . | . . Relay Couplers Released . | . . Fabnet Peak Effective % . | . . Robots Rewired . | . . Allies Hacked . | . . Hacks Repelled . | . . Allies | -11 -10 -------- Run | Yrd Mat Total Allies . | . . Largest Group . | . . Highest-Rated Group . | . . Highest-Rated Ally . | . . Total Orders . | . . Ally Attacks . | . . Total Damage . | . . Kills . | . . Allies Corrupted . | . . Allies Melted . | . . Intel | -11 -10 ------- Run | Yrd Mat Active Infowar (turns) 1055 | 25 1030 Terrain 1055 | 25 1030 Robot Analysis Total . | . . Derelict Logs Recovered . | . . Drone Launches . | . . Drone Recoveries . | . . Exploration | -11 -10 ------------- Run | Yrd Mat Turns Passed 1224 | 142 1082 Spaces Moved 507 | 74 433 Core 6 | 6 . Treads 440 | 68 372 Legs . | . . Wheels 61 | . 61 Hover . | . . Flight . | . . Fastest Speed 50 | 50 140 Average Speed 185 | 151 191 Slowest Speed 240 | 160 240 Overloaded Moves . | . . Propulsion Burnouts . | . . Robots Hopped . | . . Potential Cave-ins . | . . Cave-ins Triggered . | . . Exploration Rate (%) 38 | 4 73 Regions Visited 1 Branch Regions . Pre-discovered Areas . | . . Known Exits Taken . | . . Unknown Exits Taken 1 | 1 . Scrap Searched . | . . Spaces Dug 2 | . 2 Terrain Destroyed 2 | . 2 Melee 2 | . 2 Projectile . | . . AOE . | . . Terrain Rammed . | . . Walls Destroyed . | . . Machines Disabled . | . . Actions | -11 -10 --------- Run | Yrd Mat Total 651 | 92 559 Wait 28 | . 28 Move 506 | 73 433 Hop . | . . Pick Up 18 | 7 11 Fast Attach 8 | 7 1 Attach 4 | . 4 Detach . | . . Swap 7 | . 7 Drop 2 | . 2 Fire 74 | 5 69 Melee 4 | . 4 Ram . | . . Kick . | . . Crush . | . . Escape Stasis . | . . Rewire . | . . Trap . | . . Miscellaneous . | . . Route ------- -11/Scrapyard -10/Materials (discovered 3 exits: [*Mat x2] / [*Min]) History --------- Turn | Location | Event 43 | -11/Scrapyard | Discovered new exit (range 15) 143 | -11/Scrapyard | Entered Materials 316 | -10/Materials | Build established: Mutant 317 | -10/Materials | Discovered new exit (range 12) 873 | -10/Materials | Discovered new exit (range 16) 1035 | -10/Materials | Core integrity fell below 50% 1080 | -10/Materials | Discovered new exit (range 10) 1203 | -10/Materials | Core integrity fell below 20% 1225 | -10/Materials | Destroyed by G-34 Mercenary with Small Laser Last Messages --------------- 01179_ G-34 Mercenary destroyed. 01182_ Acquired 3 matter. 01184_ W-16 Scout sends out distress signal. 01188_ W-16 Scout suffers critical hit (Burn). 01188_ W-16 Scout destroyed. 01190_ U-05 Engineer works on Hadron Collector. 01201_ Med. Laser destroyed. 01204_ Lgt. Treads destroyed. 01205_ Lgt. Assault Rifle destroyed. 01212_ Ion Engine destroyed. 01212_ R-06 Scavenger collects Lgt. Ion Engine. 01218_ G-47 Trooper heat damages Aluminum Leg. 01220_ G-47 Trooper heat short circuits Particle Gun. 01220_ G-47 Trooper overheating. 01220_ Destroyed Aluminum Leg. 01221_ G-47 Trooper critical meltdown. 01221_ Imp. Heat Sink melted. 01224_ R-06 Scavenger collects Com. Wheel. Map ----- +----------------------------------------------------+ | #???????????????# # =[# ######+## R" # | | ???????????????? # # =%= """ # | | #######?????? ?? # %/ # | | # #?????????? # # # | | # #???????????? # # ####+## ##+### | | # || ##??????????? # # #?? # #### | | # || #?????????? ??# # #?# # #??#!= "" | | # | #?????????????# # #?# # #??#=[ T" | | # #????????#? ######### #?# # #??# "" | | + #???#????? ##?????? ## # #??# | | # #?????????# ######## ?# # #?##= | | # ##????????# ## ## ?+ ]# #??###### | | # #???#?????# ##"" ## ###### #???????? | | # #?????????# ##"Y ## #????# #???????# | | # #???#?????# ##"" ########????# # ?????? | | #######????#??#?# ## !#??????????? #???????? | | #??#??###???#???# ## #??????????? ? ??????? | | #???#???#???????# ## ! #???????#???? ????????? | | #????#??????#???# ## #????#?????????????????? | | ##????#????????## ## #?###?????#????????????? | | #???????????#?## ! ###+####????????????????????? | | #??????????????# #?? ??"??? ??????????? | | ####?????#?????# T #????????#?? ????????? | | ############## #????????????????????? | | ####%g ###? ? ? ????????????? | | ###############??#@ ##???????????????????? | | #???#???#????????# #??????? /???????????? | | ######??????#?????#??## #??????????? ????????? | | ##??#??????#?????#?????# #?????? ???#?????????? | | #????????#???#?????#?### #?? ???"?????????????? | | #??????#??#???#????????# #?#??"?????? ???????? | | #??????#???#??#????##?## %r##?????"?#??? ???????? | | #?##???#???????##?#???## #?????????#??????????? | | #??#???##?????##!????#?# ###??????????????????? | | #???????##????#! ?????# %#????????????????????? | | #????????????##! ###### #??#?##??? ??????????? | | #???????????###! ! #??#?????????????????? | | #?#?###########! ### ? ???? ? ????????? | | #???# """ ###! ###+##???"??? ????????????? | | #???# "Y" #?#### # ????? ??? ?????????? | | #???# ###### # " ##?"????? ??????????? | | #???# # # #??? ???????????????? | | #???# + # #?????#?????????????? | | ##??## # # #???????????????????? | | ?????# ###### < # #??? ???????????????? | | ?????# #????# # #???????????????????? | | #????# [ #????##### #???????????????????? | | ?????##########????????# #???????????????????? | | ???????????????????????#!] #???????????????????? | | ???????????????????????#!] #??#????????????????? | +----------------------------------------------------+ Best States ------------- Heat Dissipation 25 Energy Generation 10 Energy Capacity 250 Matter Stores 300 Matter Capacity 300 Sight Range 16 Terrain Scan Range 16 Terrain Scan Density 10 Evasion (%) 40 Recoil Reduction 2 Item Schematics ----------------- None Robot Schematics ------------------ None Fabricated ------------ Nothing Repaired ---------- Nothing Studied --------- None Alien Tech Used ----------------- None Achievements -------------- None Challenges ------------ None Game ------ Seed TerrainExoskeletonWeb Manual? 0 Play Time 00:07:46 Cumulative 321.2 hours Start 2026.08.21 @ 15:46:33 End 2026.08.21 @ 15:53:04 Sessions 1 Manual Loads 0 Difficulty Rogue Special Mode None Game No. 101 Rogue 74 Adventurer 27 Explorer 0 Win Type - Total 18 Types 12/1/2/1/1/0/0/0/0/1 Lore% 76 Gallery% 66 Achievement% 61 Wizard Run 0 Options --------- Layout 1 ASCII 0 Keyboard 0 Movement Numpad Keybinds 1 Fullscreen 1 Font 24/Smallcaps Map View 50x35 Zoom Use 0% Tactical HUD 1 Map Filters NONE Filters NONE Steam 1 RUN: 4e8a1f0d-f3cd-48c3-849a-f47bcfcf13c7